fUST/lending_fUST_20250715
["ID","MTS","AMOUNT","RATE_DAILY","PERIOD"]
[372285591,1752575440983,-460.0,0.00019178,2]
[372285593,1752575440992,-460.0,0.00019178,2]
[372285595,1752575441001,-460.0,0.00019178,2]
[372285597,1752575441011,-460.0,0.00019178,2]
[372285599,1752575441020,-2346.41,0.00019178,2]
[372285601,1752575441030,-729.62,0.00019178,2]
[372285603,1752575441039,-519.01,0.00019178,2]
[372285605,1752575441049,-460.0,0.00019178,2]
[372285607,1752575441059,-201.8913,0.00019178,2]
[372285609,1752575441068,-500.0,0.00019178,2]
[372285611,1752575441078,-500.0,0.00019186,2]
[372285613,1752575441087,-33853.84,0.000192,2]
[372285615,1752575441097,-2431.85,0.000192,2]
[372285617,1752575441107,-5342.99,0.000192,2]
[372285619,1752575441116,-8648.50821675,0.00019329,2]
[372285621,1752575441126,-500.0,0.00019339,2]
[372285623,1752575441136,-500.0,0.00019339,2]
[372285625,1752575441145,-707.79546869,0.00019371,2]
[372285627,1752575441155,-460.0,0.00019452,2]
[372285629,1752575441164,-460.0,0.00019452,2]
[372285631,1752575441174,-460.0,0.00019452,2]
[372285633,1752575441183,-460.0,0.00019452,2]
[372285635,1752575441192,-460.0,0.00019452,2]
[372285637,1752575441201,-372.54466094,0.00019452,2]
[372285639,1752575441211,-460.0,0.00019452,2]
[372285641,1752575441220,-500.28,0.00019452,2]
[372285642,1752575441229,-460.0,0.00019452,2]
[372285644,1752575441239,-460.0,0.00019452,2]
[372285646,1752575441249,-460.0,0.00019452,2]
[372285648,1752575441258,-460.0,0.00019452,2]
[372285650,1752575441268,-475.38,0.00019452,2]
[372285652,1752575441277,-460.0,0.00019452,2]
[372285654,1752575441286,-460.0,0.00019452,2]
[372285656,1752575441296,-460.0,0.00019452,2]
[372285658,1752575441309,-460.0,0.00019452,2]
[372285660,1752575441319,-460.0,0.00019452,2]
[372285662,1752575441328,-460.0,0.00019452,2]
[372285664,1752575441337,-443.45,0.00019452,2]
[372285666,1752575441347,-460.0,0.00019452,2]
[372285668,1752575441362,-460.0,0.00019452,2]
[372285670,1752575441371,-460.0,0.00019452,2]
[372285672,1752575441381,-460.0,0.00019452,2]
[372285674,1752575441390,-460.0,0.00019452,2]
[372285676,1752575441399,-501.21,0.00019452,2]
[372285678,1752575441408,-460.0,0.00019452,2]
[372285680,1752575441418,-460.0,0.00019452,2]
[372285682,1752575441427,-460.0,0.00019452,2]
[372285684,1752575441436,-460.0,0.00019452,2]
[372285686,1752575441445,-460.0,0.00019452,2]
[372285688,1752575441454,-585.18,0.00019452,2]
[372285690,1752575441466,-460.0,0.00019452,2]
[372285692,1752575441476,-460.0,0.00019452,2]
[372285694,1752575441486,-649.73,0.00019452,2]
[372285696,1752575441496,-460.0,0.00019452,2]
[372285698,1752575441509,-460.0,0.00019452,2]
[372285700,1752575441518,-460.0,0.00019452,2]
[372285702,1752575441528,-460.0,0.00019452,2]
[372285704,1752575441538,-460.0,0.00019452,2]
[372285706,1752575441548,-460.0,0.00019452,2]
[372285708,1752575441557,-460.0,0.00019452,2]
[372285710,1752575441567,-530.7,0.00019452,2]
[372285712,1752575441576,-460.0,0.00019452,2]
[372285714,1752575441586,-460.0,0.00019452,2]
[372285716,1752575441595,-460.0,0.00019452,2]
[372285718,1752575441604,-673.52,0.00019452,2]
[372285720,1752575441614,-460.0,0.00019452,2]
[372285722,1752575441623,-460.0,0.00019452,2]
[372285724,1752575441633,-460.0,0.00019452,2]
[372285726,1752575441643,-460.0,0.00019452,2]
[372285728,1752575441653,-460.0,0.00019452,2]
[372285730,1752575441662,-460.0,0.00019452,2]
[372285732,1752575441672,-460.0,0.00019452,2]
[372285734,1752575441681,-460.0,0.00019452,2]
[372285736,1752575441691,-460.0,0.00019452,2]
[372285738,1752575441700,-460.0,0.00019452,2]
[372285739,1752575441709,-609.58,0.00019452,2]
[372285741,1752575441718,-460.0,0.00019452,2]
[372285743,1752575441727,-460.0,0.00019452,2]
[372285745,1752575441736,-460.0,0.00019452,2]
[372285747,1752575441745,-460.0,0.00019452,2]
[372285749,1752575441754,-460.0,0.00019452,2]
[372285751,1752575441763,-460.0,0.00019452,2]
[372285753,1752575441773,-5465.94,0.00019452,2]
[372285755,1752575441782,-460.0,0.00019452,2]
[372285757,1752575441792,-460.0,0.00019452,2]
[372285759,1752575441801,-1400.21,0.00019452,2]
[372285761,1752575441811,-460.0,0.00019452,2]
[372285763,1752575441821,-150.00211973,0.00019452,2]
[372285765,1752575441830,-460.0,0.00019452,2]
[372285767,1752575441841,-460.0,0.00019452,2]
[372285769,1752575441850,-948.09,0.00019452,2]
[372285771,1752575441859,-699.65,0.00019452,2]
[372285773,1752575441870,-460.0,0.00019452,2]
[372285775,1752575441880,-460.0,0.00019452,2]
[372285777,1752575441891,-4901.79,0.00019452,2]
[372285779,1752575441901,-460.0,0.00019452,2]
[372285781,1752575441911,-3671.47,0.00019452,2]
[372285783,1752575441920,-460.0,0.00019452,2]
[372285785,1752575441930,-460.0,0.00019452,2]
[372285787,1752575441939,-460.0,0.00019452,2]
[372285789,1752575441949,-460.0,0.00019452,2]
[372285791,1752575441958,-589.39,0.00019452,2]
[372285792,1752575441968,-460.0,0.00019452,2]
[372285794,1752575441977,-1737.34,0.00019452,2]
[372285796,1752575441987,-771.02,0.00019452,2]
[372285798,1752575441997,-460.0,0.00019452,2]
[372285800,1752575442006,-460.0,0.00019452,2]
[372285802,1752575442015,-460.0,0.00019452,2]
[372285804,1752575442025,-1520.26,0.00019452,2]
[372285806,1752575442035,-1680.72,0.00019452,2]
[372285808,1752575442045,-460.0,0.00019452,2]
[372285810,1752575442054,-460.0,0.00019452,2]
[372285812,1752575442064,-763.48,0.00019452,2]
[372285814,1752575442074,-383.94856345,0.00019452,2]
[372285816,1752575442083,-460.0,0.00019452,2]
[372285818,1752575442093,-393.66112447,0.00019452,2]
[372285820,1752575442102,-5880.18,0.00019452,2]
[372285822,1752575442111,-490.4,0.00019452,2]
[372285824,1752575442125,-2318.46,0.00019452,2]
[372285826,1752575442139,-460.0,0.00019452,2]
[372285828,1752575442152,-460.0,0.00019452,2]
[372285831,1752575442164,-460.0,0.00019452,2]
[372285833,1752575442176,-562.03,0.00019452,2]
[372285835,1752575442189,-466.4211985,0.00019452,2]
[372285838,1752575442201,-1079.78,0.00019452,2]
[372285840,1752575442211,-727.03,0.00019452,2]
[372285842,1752575442222,-460.0,0.00019452,2]
[372285844,1752575442234,-460.0,0.00019452,2]
[372285846,1752575442246,-460.0,0.00019452,2]
[372285849,1752575442257,-569.94,0.00019452,2]
[372285851,1752575442268,-460.0,0.00019452,2]
[372285853,1752575442280,-601.2,0.00019452,2]
[372285855,1752575442292,-460.0,0.00019452,2]
[372285857,1752575442304,-460.0,0.00019452,2]
[372285860,1752575442315,-460.0,0.00019452,2]
[372285862,1752575442327,-460.0,0.00019452,2]
[372285864,1752575442338,-460.0,0.00019452,2]
[372285866,1752575442351,-460.0,0.00019452,2]
[372285869,1752575442363,-460.0,0.00019452,2]
[372285871,1752575442375,-2081.37,0.00019452,2]
[372285873,1752575442387,-460.0,0.00019452,2]
[372285875,1752575442398,-460.0,0.00019452,2]
[372285877,1752575442410,-460.0,0.00019452,2]
[372285880,1752575442422,-4730.01,0.00019452,2]
[372285882,1752575442433,-1510.31,0.00019452,2]
[372285884,1752575442443,-2344.72,0.00019452,2]
[372285886,1752575442454,-629.83,0.00019452,2]
[372285888,1752575442468,-538.02,0.00019452,2]
[372285890,1752575442480,-649.41,0.00019452,2]
[372285893,1752575442492,-460.0,0.00019452,2]
[372285895,1752575442503,-460.0,0.00019452,2]
[372285897,1752575442515,-460.0,0.00019452,2]
[372285899,1752575442528,-460.0,0.00019452,2]
[372285901,1752575442539,-460.0,0.00019452,2]
[372285903,1752575442551,-1037.06,0.00019452,2]
[372285905,1752575442561,-460.0,0.00019452,2]
[372285908,1752575442574,-460.0,0.00019452,2]
[372285910,1752575442584,-460.0,0.00019452,2]
[372285912,1752575442595,-460.0,0.00019452,2]
[372285914,1752575442605,-460.0,0.00019452,2]
[372285916,1752575442616,-2346.41,0.00019452,2]
[372285918,1752575442628,-729.62,0.00019452,2]
[372285920,1752575442640,-519.01,0.00019452,2]
[372285923,1752575442654,-460.0,0.00019452,2]
[372285925,1752575442665,-500.0,0.00019452,2]
[372285927,1752575442676,-180.26318425,0.00019457,2]
[372285929,1752575442689,-207.7516746,0.00019528,2]
[372285931,1752575442700,-501.5911219,0.00019671,2]
[372285935,1752575442712,-1000.0,0.00019716,2]
[372285938,1752575442725,-1000.0,0.00019716,2]
[372285940,1752575442737,-460.0,0.00019726,2]
[372285942,1752575442747,-460.0,0.00019726,2]
[372285944,1752575442757,-460.0,0.00019726,2]
[372285946,1752575442768,-500.28,0.00019726,2]
[372285948,1752575442777,-460.0,0.00019726,2]
[372285950,1752575442788,-460.0,0.00019726,2]
[372285952,1752575442799,-597.35215289,0.00019726,2]
[372285955,1752575442811,-475.38,0.00019726,2]
[372285957,1752575442823,-460.0,0.00019726,2]
[372285959,1752575442836,-460.0,0.00019726,2]
[372285962,1752575442848,-489.91246802,0.00019726,2]
[372285964,1752575442859,-460.0,0.00019726,2]
[372285966,1752575442869,-460.0,0.00019726,2]
[372285968,1752575442879,-460.0,0.00019726,2]
[372285970,1752575442891,-460.0,0.00019726,2]
[372285972,1752575442902,-460.0,0.00019726,2]
[372285974,1752575442912,-460.0,0.00019726,2]
[372285976,1752575442923,-460.0,0.00019726,2]
[372285978,1752575442934,-501.21,0.00019726,2]
[372285980,1752575442945,-163.22387918,0.00019726,2]
[372285983,1752575442960,-460.0,0.00019726,2]
[372285985,1752575442973,-460.0,0.00019726,2]
[372285987,1752575442983,-585.18,0.00019726,2]
[372285989,1752575442993,-460.0,0.00019726,2]
[372285991,1752575443005,-649.73,0.00019726,2]
[372285994,1752575443015,-460.0,0.00019726,2]
[372285997,1752575443026,-460.0,0.00019726,2]
[372285999,1752575443036,-460.0,0.00019726,2]
[372286002,1752575443046,-460.0,0.00019726,2]
[372286004,1752575443057,-460.0,0.00019726,2]
[372286006,1752575443067,-530.7,0.00019726,2]
[372286008,1752575443078,-673.52,0.00019726,2]
[372286010,1752575443088,-460.0,0.00019726,2]
[372286012,1752575443099,-460.0,0.00019726,2]
[372286014,1752575443110,-460.0,0.00019726,2]
[372286016,1752575443120,-460.0,0.00019726,2]
[372286019,1752575443131,-460.0,0.00019726,2]
[372286021,1752575443142,-460.0,0.00019726,2]
[372286023,1752575443153,-609.58,0.00019726,2]
[372286025,1752575443164,-460.0,0.00019726,2]
[372286027,1752575443174,-460.0,0.00019726,2]
[372286029,1752575443185,-470.0,0.00019726,2]
[372286031,1752575443195,-460.0,0.00019726,2]
[372286033,1752575443205,-5465.94,0.00019726,2]
[372286036,1752575443215,-460.0,0.00019726,2]
[372286038,1752575443226,-460.0,0.00019726,2]
[372286040,1752575443237,-1400.21,0.00019726,2]
[372286042,1752575443248,-460.0,0.00019726,2]
[372286044,1752575443260,-460.0,0.00019726,2]
[372286046,1752575443270,-460.0,0.00019726,2]
[372286048,1752575443283,-948.09,0.00019726,2]
[372286050,1752575443294,-699.65,0.00019726,2]
[372286052,1752575443304,-521.25,0.00019726,2]
[372286054,1752575443315,-460.0,0.00019726,2]
[372286057,1752575443325,-4901.79,0.00019726,2]
[372286059,1752575443335,-460.0,0.00019726,2]
[372286061,1752575443350,-3671.47,0.00019726,2]
[372286063,1752575443365,-460.0,0.00019726,2]
[372286065,1752575443376,-460.0,0.00019726,2]
[372286067,1752575443387,-460.0,0.00019726,2]
[372286069,1752575443397,-589.39,0.00019726,2]
[372286071,1752575443407,-1737.34,0.00019726,2]
[372286073,1752575443418,-771.02,0.00019726,2]
[372286076,1752575443428,-460.0,0.00019726,2]
[372286078,1752575443439,-460.0,0.00019726,2]
[372286080,1752575443449,-460.0,0.00019726,2]
[372286082,1752575443460,-1520.26,0.00019726,2]
[372286084,1752575443472,-1680.72,0.00019726,2]
[372286086,1752575443482,-460.0,0.00019726,2]
[372286088,1752575443493,-460.0,0.00019726,2]
[372286090,1752575443504,-763.48,0.00019726,2]
[372286092,1752575443515,-5880.18,0.00019726,2]
[372286094,1752575443526,-490.4,0.00019726,2]
[372286096,1752575443541,-2318.46,0.00019726,2]
[372286098,1752575443552,-460.0,0.00019726,2]
[372286101,1752575443563,-237.4209502,0.00019726,2]
[372286103,1752575443574,-562.03,0.00019726,2]
[372286105,1752575443585,-1079.78,0.00019726,2]
[372286107,1752575443595,-727.03,0.00019726,2]
[372286109,1752575443606,-460.0,0.00019726,2]
[372286111,1752575443616,-460.0,0.00019726,2]
[372286114,1752575443627,-460.0,0.00019726,2]
[372286117,1752575443639,-569.94,0.00019726,2]
[372286119,1752575443649,-460.0,0.00019726,2]
[372286122,1752575443661,-601.2,0.00019726,2]
[372286124,1752575443671,-460.0,0.00019726,2]
[372286126,1752575443682,-460.0,0.00019726,2]
[372286128,1752575443693,-460.0,0.00019726,2]
[372286130,1752575443704,-460.0,0.00019726,2]
[372286132,1752575443715,-460.0,0.00019726,2]
[372286134,1752575443726,-469.10647165,0.00019726,2]
[372286136,1752575443737,-2081.37,0.00019726,2]
[372286139,1752575443748,-460.0,0.00019726,2]
[372286141,1752575443758,-460.0,0.00019726,2]
[372286143,1752575443769,-460.0,0.00019726,2]
[372286145,1752575443780,-401.89557212,0.00019726,2]
[372286147,1752575443790,-4730.01,0.00019726,2]
[372286149,1752575443801,-1510.31,0.00019726,2]
[372286151,1752575443813,-2344.72,0.00019726,2]
[372286154,1752575443823,-629.83,0.00019726,2]
[372286156,1752575443834,-538.02,0.00019726,2]
[372286158,1752575443845,-649.41,0.00019726,2]
[372286160,1752575443855,-328.24069586,0.00019726,2]
[372286162,1752575443866,-328.24069586,0.00019726,2]
[372286164,1752575443876,-333.35421646,0.00019726,2]
[372286166,1752575443888,-460.0,0.00019726,2]
[372286169,1752575443899,-460.0,0.00019726,2]
[372286171,1752575443909,-1037.06,0.00019726,2]
[372286173,1752575443919,-460.0,0.00019726,2]
[372286175,1752575443930,-460.0,0.00019726,2]
[372286177,1752575443940,-460.0,0.00019726,2]
[372286179,1752575443951,-460.0,0.00019726,2]
[372286181,1752575443962,-460.0,0.00019726,2]
[372286182,1752575443973,-2346.41,0.00019726,2]
[372286183,1752575443985,-729.62,0.00019726,2]
[372286184,1752575443995,-519.01,0.00019726,2]
[372286185,1752575444006,-460.0,0.00019726,2]
[372286186,1752575444017,-500.0,0.00019726,2]
[372286187,1752575444027,-39887.82694021,0.00019789,2]
[372286188,1752575444038,-1000.0,0.00019887,2]
[372286190,1752575444050,-707.79546869,0.00019909,2]
[372286193,1752575444251,-150.0,0.00019912,2]
[372286195,1752575444265,-500.0,0.00019973,2]
[372286197,1752575444274,-500.0,0.00019973,2]
[372286199,1752575444283,-500.0,0.00019973,2]
[372286201,1752575444292,-500.0,0.00019973,2]
[372286203,1752575444302,-209.02065604,0.00019973,2]
[372286205,1752575444311,-500.0,0.00019973,2]
[372286207,1752575444321,-500.0,0.00019973,2]
[372286208,1752575444330,-505.05020048,0.00019973,2]
[372286210,1752575444339,-500.0,0.00019973,2]
[372286212,1752575444349,-500.0,0.00019973,2]
[372286214,1752575444358,-500.0,0.00019973,2]
[372286216,1752575444367,-246254.89233106,0.00019989,2]
[372286218,1752575444378,-500.0,0.00019999,2]
[372286220,1752575444388,-163.78597522,0.00019999,2]
[372286223,1752575444399,-460.0,0.0002,2]
[372286224,1752575444408,-460.0,0.0002,2]
[372286226,1752575444418,-405.24582769,0.0002,2]
[372286228,1752575444429,-500.28,0.0002,2]
[372286230,1752575444439,-460.0,0.0002,2]
[372286232,1752575444448,-1783.0,0.0002,2]
[372286234,1752575444458,-460.0,0.0002,2]
[372286236,1752575444475,-475.38,0.0002,2]
[372286238,1752575444485,-460.0,0.0002,2]
[372286240,1752575444494,-460.0,0.0002,2]
[372286242,1752575444506,-460.0,0.0002,2]
[372286244,1752575444515,-460.0,0.0002,2]
[372286246,1752575444524,-460.0,0.0002,2]
[372286248,1752575444534,-460.0,0.0002,2]
[372286250,1752575444544,-460.0,0.0002,2]
[372286252,1752575444553,-501.21,0.0002,2]
[372286254,1752575444563,-460.0,0.0002,2]
[372286256,1752575444573,-460.0,0.0002,2]
[372286258,1752575444583,-585.18,0.0002,2]
[372286260,1752575444593,-460.0,0.0002,2]
[372286262,1752575444602,-649.73,0.0002,2]
[372286264,1752575444612,-460.0,0.0002,2]
[372286266,1752575444622,-460.0,0.0002,2]
[372286268,1752575444632,-460.0,0.0002,2]
[372286270,1752575444642,-530.7,0.0002,2]
[372286272,1752575444655,-673.52,0.0002,2]
[372286274,1752575444665,-460.0,0.0002,2]
[372286276,1752575444675,-460.0,0.0002,2]
[372286278,1752575444685,-460.0,0.0002,2]
[372286280,1752575444694,-539.16516269,0.0002,2]
[372286282,1752575444711,-460.0,0.0002,2]
[372286284,1752575444727,-609.58,0.0002,2]
[372286286,1752575444736,-460.0,0.0002,2]
[372286288,1752575444746,-460.0,0.0002,2]
[372286290,1752575444755,-460.0,0.0002,2]
[372286292,1752575444766,-5465.94,0.0002,2]
[372286294,1752575444776,-460.0,0.0002,2]
[372286296,1752575444785,-460.0,0.0002,2]
[372286298,1752575444795,-1400.21,0.0002,2]
[372286300,1752575444804,-262.07,0.0002,2]
[372286302,1752575444814,-460.0,0.0002,2]
[372286304,1752575444824,-948.09,0.0002,2]
[372286306,1752575444834,-699.65,0.0002,2]
[372286308,1752575444844,-460.0,0.0002,2]
[372286310,1752575444853,-4901.79,0.0002,2]
[372286312,1752575444863,-460.0,0.0002,2]
[372286314,1752575444872,-3671.47,0.0002,2]
[372286316,1752575444884,-460.0,0.0002,2]
[372286318,1752575444894,-589.39,0.0002,2]
[372286320,1752575444904,-1737.34,0.0002,2]
[372286322,1752575444913,-771.02,0.0002,2]
[372286324,1752575444923,-460.0,0.0002,2]
[372286326,1752575444933,-1520.26,0.0002,2]
[372286328,1752575444942,-1680.72,0.0002,2]
[372286330,1752575444952,-460.0,0.0002,2]
[372286332,1752575444962,-460.0,0.0002,2]
[372286334,1752575444971,-763.48,0.0002,2]
[372286336,1752575444981,-5880.18,0.0002,2]
[372286338,1752575444991,-490.4,0.0002,2]
[372286340,1752575445000,-2318.46,0.0002,2]
[372286342,1752575445011,-460.0,0.0002,2]
[372286345,1752575445021,-562.03,0.0002,2]
[372286346,1752575445030,-1079.78,0.0002,2]
[372286348,1752575445039,-727.03,0.0002,2]
[372286350,1752575445048,-460.0,0.0002,2]
[372286352,1752575445057,-460.0,0.0002,2]
[372286354,1752575445066,-19364.9520825,0.0002,5]
[372286356,1752575445076,-460.0,0.0002,2]
[372286358,1752575445087,-569.94,0.0002,2]
[372286360,1752575445096,-11635.1705481,0.0002,2]
[372286362,1752575445106,-601.2,0.0002,2]
[372286364,1752575445116,-460.0,0.0002,2]
[372286366,1752575445125,-460.0,0.0002,2]
[372286368,1752575445135,-460.0,0.0002,2]
[372286370,1752575445144,-309.42311904,0.0002,2]
[372286372,1752575445154,-460.0,0.0002,2]
[372286374,1752575445163,-2081.37,0.0002,2]
[372286376,1752575445174,-460.0,0.0002,2]
[372286378,1752575445183,-500.0,0.0002,2]
[372286380,1752575445193,-460.0,0.0002,2]
[372286383,1752575445206,-460.0,0.0002,2]
[372286384,1752575445216,-4730.01,0.0002,2]
[372286386,1752575445227,-1510.31,0.0002,2]
[372286388,1752575445241,-2344.72,0.0002,2]
[372286390,1752575445257,-629.83,0.0002,2]
[372286392,1752575445272,-538.02,0.0002,2]
[372286394,1752575445282,-649.41,0.0002,2]
[372286396,1752575445296,-300.2710838,0.0002,2]
[372286398,1752575445306,-460.0,0.0002,2]
[372286400,1752575445315,-460.0,0.0002,2]
[372286402,1752575445325,-1037.06,0.0002,2]
[372286404,1752575445335,-460.0,0.0002,2]
[372286406,1752575445344,-460.0,0.0002,2]
[372286408,1752575445353,-596.49875175,0.0002,2]
[372286410,1752575445363,-460.0,0.0002,2]
[372286412,1752575445372,-2346.41,0.0002,2]
[372286414,1752575445382,-729.62,0.0002,2]
[372286416,1752575445393,-519.01,0.0002,2]
[372286418,1752575445402,-460.0,0.0002,2]
[372286420,1752575445412,-420.0,0.00020044,2]
[372286422,1752575445421,-11017.15526036,0.00020139,2]
[372286424,1752575445432,-182.834915,0.00020187,2]
[372286426,1752575445441,-500.0,0.00020196,2]
[372286428,1752575445451,-1500.0,0.00020264,2]
[372286430,1752575445465,-1500.0,0.00020264,2]
[372286432,1752575445479,-460.0,0.00020273,2]
[372286434,1752575445489,-460.0,0.00020273,2]
[372286436,1752575445500,-500.28,0.00020273,2]
[372286438,1752575445511,-460.0,0.00020273,2]
[372286440,1752575445520,-509.10184051,0.00020273,2]
[372286442,1752575445530,-475.38,0.00020273,2]
[372286444,1752575445540,-460.0,0.00020273,2]
[372286446,1752575445550,-564.48562918,0.00020273,2]
[372286448,1752575445559,-460.0,0.00020273,2]
[372286450,1752575445568,-460.0,0.00020273,2]
[372286452,1752575445577,-460.0,0.00020273,2]
[372286454,1752575445586,-460.0,0.00020273,2]
[372286456,1752575445596,-460.0,0.00020273,2]
[372286458,1752575445605,-501.21,0.00020273,2]
[372286460,1752575445615,-460.0,0.00020273,2]
[372286462,1752575445624,-460.0,0.00020273,2]
[372286463,1752575445635,-585.18,0.00020273,2]
[372286466,1752575445645,-460.0,0.00020273,2]
[372286468,1752575445655,-649.73,0.00020273,2]
[372286469,1752575445665,-426.00398783,0.00020273,2]
[372286471,1752575445675,-460.0,0.00020273,2]
[372286474,1752575445685,-460.0,0.00020273,2]
[372286476,1752575445696,-530.7,0.00020273,2]
[372286477,1752575445706,-673.52,0.00020273,2]
[372286479,1752575445715,-460.0,0.00020273,2]
[372286481,1752575445724,-349.5077226,0.00020273,2]
[372286483,1752575445734,-460.0,0.00020273,2]
[372286485,1752575445743,-460.0,0.00020273,2]
[372286487,1752575445754,-609.58,0.00020273,2]
[372286489,1752575445763,-460.0,0.00020273,2]
[372286491,1752575445772,-460.0,0.00020273,2]
[372286493,1752575445782,-460.0,0.00020273,2]
[372286495,1752575445792,-5465.94,0.00020273,2]
[372286497,1752575445801,-460.0,0.00020273,2]
[372286499,1752575445811,-460.0,0.00020273,2]
[372286501,1752575445821,-1400.21,0.00020273,2]
[372286503,1752575445830,-460.0,0.00020273,2]
[372286505,1752575445840,-948.09,0.00020273,2]
[372286507,1752575445850,-699.65,0.00020273,2]
[372286508,1752575445859,-460.0,0.00020273,2]
[372286510,1752575445868,-4901.79,0.00020273,2]
[372286512,1752575445878,-460.0,0.00020273,2]
[372286514,1752575445890,-3671.47,0.00020273,2]
[372286516,1752575445910,-460.0,0.00020273,2]
[372286518,1752575445925,-589.39,0.00020273,2]
[372286521,1752575445935,-1737.34,0.00020273,2]
[372286523,1752575445943,-771.02,0.00020273,2]
[372286525,1752575445952,-460.0,0.00020273,2]
[372286527,1752575445959,-1520.26,0.00020273,2]
[372286529,1752575445967,-1680.72,0.00020273,2]
[372286531,1752575445977,-460.0,0.00020273,2]
[372286533,1752575445984,-460.0,0.00020273,2]
[372286535,1752575445992,-763.48,0.00020273,2]
[372286536,1752575445999,-5880.18,0.00020273,2]
[372286538,1752575446007,-490.4,0.00020273,2]
[372286540,1752575446015,-2318.46,0.00020273,2]
[372286542,1752575446025,-460.0,0.00020273,2]
[372286544,1752575446035,-562.03,0.00020273,2]
[372286546,1752575446044,-1079.78,0.00020273,2]
[372286548,1752575446054,-727.03,0.00020273,2]
[372286550,1752575446063,-460.0,0.00020273,2]
[372286552,1752575446073,-460.0,0.00020273,2]
[372286554,1752575446083,-460.0,0.00020273,2]
[372286556,1752575446092,-569.94,0.00020273,2]
[372286558,1752575446102,-601.2,0.00020273,2]
[372286560,1752575446112,-460.0,0.00020273,2]
[372286562,1752575446122,-460.0,0.00020273,2]
[372286564,1752575446132,-2081.37,0.00020273,2]
[372286566,1752575446142,-460.0,0.00020273,2]
[372286568,1752575446151,-460.0,0.00020273,2]
[372286570,1752575446161,-460.0,0.00020273,2]
[372286572,1752575446171,-4730.01,0.00020273,2]
[372286574,1752575446180,-1510.31,0.00020273,2]
[372286576,1752575446190,-2344.72,0.00020273,2]
[372286578,1752575446201,-629.83,0.00020273,2]
[372286580,1752575446211,-538.02,0.00020273,2]
[372286582,1752575446221,-649.41,0.00020273,2]
[372286584,1752575446237,-460.0,0.00020273,2]
[372286586,1752575446252,-460.0,0.00020273,2]
[372286588,1752575446262,-1037.06,0.00020273,2]
[372286590,1752575446271,-460.0,0.00020273,2]
[372286592,1752575446281,-460.0,0.00020273,2]
[372286594,1752575446291,-2346.41,0.00020273,2]
[372286596,1752575446300,-729.62,0.00020273,2]
[372286598,1752575446309,-519.01,0.00020273,2]
[372286600,1752575446320,-460.0,0.00020273,2]
[372286602,1752575446330,-150000.0,0.00020322,2]
[372286604,1752575446341,-2467.62038237,0.00020322,2]
[372286617,1752575446478,-5474.45241853,0.00020322,2]